Cogmind - Beta 11 @@@ ROGUE MODE // 2022.03.20 @ 14:42:23 Player: Red Box Result: Self-destructed Performance ------------- Evolutions (2) 1000 Regions Visited (5) 1000 Robots Destroyed (35) 175 Value Destroyed (1025) 1025 Prototype IDs (6) 120 Alien Tech Used (0) 0 Bonus (58) 58 TOTAL SCORE: 3378 Bonus ------- Follower Combat Kills 184 Friendly Fire -126 Cogmind --------- Core Integrity 400/550 Matter 258/300 Energy 275/275 System Corruption 0% Temperature Cool (81) Movement Treading (240) Ox1 Location -8/Materials Parts ------- > --- POWER (1) -------- Deuterium Engine > --- PROPULSION (3) --- Light Treads Light Treads Light Treads > --- UTILITY (5) ------ High-capacity Storage Unit Targeting Computer Transmission Jammer Hardened Medium Armor Plating Makeshift Hacking Suite > --- WEAPON (2) ------- Light Cannon Light Cannon > --- INVENTORY (20) --- Heavy Ion Engine Light Treads Light Treads Light Treads Large Storage Unit High-capacity Matter Pod (200) Improved Sensor Array Propulsion Shielding Medium Reactive Plating Bomb Drone Bay (16/16) Advanced Beam Cannon Advanced Beam Cannon Gauss Rifle Light Cannon Light Cannon Light Cannon Flak Cannon Heavy Rocket Launcher Makeshift Sword Peak State ------------ > --- POWER ------------ Ion Engine > --- PROPULSION ------- Light Treads Light Treads Light Treads > --- UTILITY ---------- High-capacity Storage Unit Targeting Computer Propulsion Shielding Bomb Drone Bay > --- WEAPON ----------- Light Cannon Light Cannon > --- INVENTORY -------- Light Treads Light Treads Large Storage Unit High-capacity Matter Pod Propulsion Shielding Makeshift Hacking Suite Advanced Beam Cannon Advanced Beam Cannon Advanced Beam Cannon Gauss Rifle Light Cannon Light Cannon Light Cannon Light Cannon Mini Grenade Launcher Makeshift Sword [Rating: 26] Favorites ----------- Power Light Ion Engine Engine Light Ion Engine Propulsion Light Treads Treads Light Treads Leg Aluminum Leg Wheel Compact Wheel Utility High-capacity Storage Unit Device Weight Redist. System Storage High-capacity Storage Unit Processor Targeting Computer Hackware Makeshift Hacking Suite Protection Propulsion Shielding Weapon Light Cannon Energy Gun Medium Laser Energy Cannon Advanced Beam Cannon Ballistic Gun Assault Rifle Ballistic Cannon Light Cannon Launcher Mini Grenade Launcher Slashing Weapon Makeshift Sword Build | -11 -10 -10 -10 -9 -8 ------- Run | Scr Mat Min Exi Min Mat Slots Evolved 4 | . . . . . 4 Power . | . . . . . . Propulsion 1 | . . . . . 1 Utility 3 | . . . . . 3 Weapon . | . . . . . . Parts Attached 49 | 6 22 2 5 3 11 Power 6 | 1 2 1 . 1 1 Engine 6 | 1 2 1 . 1 1 Core . | . . . . . . Reactor . | . . . . . . Propulsion 16 | 2 10 . 2 . 2 Treads 8 | . 4 . 2 . 2 Leg 4 | 2 2 . . . . Wheel 4 | . 4 . . . . Hover . | . . . . . . Flight . | . . . . . . Utility 17 | 1 7 1 1 . 7 Device 6 | . 3 . . . 3 Storage 6 | 1 4 1 . . . Processor 1 | . . . 1 . . Hackware 1 | . . . . . 1 Protection 3 | . . . . . 3 Artifact . | . . . . . . Weapon 10 | 2 3 . 2 2 1 Energy Gun 1 | 1 . . . . . Energy Cannon 1 | . 1 . . . . Ballistic Gun 1 | 1 . . . . . Ballistic Cannon 5 | . 2 . 1 1 1 Launcher 1 | . . . . 1 . Special Weapon . | . . . . . . Impact Weapon . | . . . . . . Slashing Weapon 1 | . . . 1 . . Piercing Weapon . | . . . . . . Special Melee Weapon . | . . . . . . Unidentified Prototypes 2 | . 1 . . . 1 Parts Lost 4 | . 2 1 . . 1 Power 2 | . 1 1 . . . Propulsion 1 | . 1 . . . . Utility 1 | . . . . . 1 Weapon . | . . . . . . Highest Loss Streak 1 | . 1 1 . . 1 To Critical Strikes . | . . . . . . Average Slot Usage (%) 98 | . 96 99 100 100 95 Engine 13 | . 13 13 14 14 9 Treads 23 | . 8 28 28 28 27 Leg 1 | . 8 . . . . Wheel 1 | . 8 . . . . Device 9 | . 13 14 10 . 4 Storage 13 | . 14 14 14 14 9 Processor 4 | . . . 3 14 9 Hackware 1 | . . . . . 8 Protection 1 | . . . . . 9 Energy Gun 2 | . 10 . . . . Energy Cannon 2 | . 9 . . . . Ballistic Cannon 20 | . 7 28 20 27 18 Slashing Weapon 1 | . . . 7 . . Naked Turns . | . . . . . . Heaviest Build 72 | 14 51 49 49 51 72 Greatest Support 60 | 20 46 46 46 40 60 Greatest Overweight (x) 3 | 1 3 1 1 1 1 Average Overweight (x) . | . . . 1 1 . Largest Inventory Capacity 20 | 8 20 20 20 20 20 Average Capacity 18 | 7 13 18 20 20 20 Most Carried 20 | 5 15 18 20 20 20 Average Carried 17 | 2 12 17 19 20 19 Final Capacity 20 | 8 15 20 20 20 20 Final Carried 20 | 5 15 18 20 20 20 Class Distribution -------------------- 76% | Mutant 23% | Commander-Mutant Dominant Class ---------------- Mutant | -10/Materials Mutant | -10/Mines Commander-Mutant | -10/Exiles Mutant | -9/Mines Mutant | -8/Materials Resources | -11 -10 -10 -10 -9 -8 ----------- Run | Scr Mat Min Exi Min Mat Matter Collected 1298 | 189 394 116 40 88 471 Remotely . | . . . . . . Salvage Created 1248 | . 383 71 162 141 491 Parts 52 | . 26 4 6 5 11 Haulers Intercepted 2 | . 2 . . . . Recyclers Shooed 1 | . 1 . . . . Parts Field Recycled . | . . . . . . Retrieved Matter . | . . . . . . Parts Self-Destructed . | . . . . . . Prevented . | . . . . . . Kills | -11 -10 -10 -10 -9 -8 ------- Run | Scr Mat Min Exi Min Mat Combat Hostiles Destroyed 27 | . 10 3 . 2 12 Guns 4 | . 4 . . . . Cannons 23 | . 6 3 . 2 12 Classes Destroyed 8 | . 4 . . 1 3 Worker 2 | . . . . . 2 Hauler 2 | . 2 . . . . Recycler 1 | . . . . 1 . Watcher 3 | . 3 . . . . Swarmer 6 | . 6 . . . . Grunt 17 | . 4 2 . 2 9 Duelist 1 | . . . . . 1 Sentry 2 | . . . . . 2 Best Kill Streak 4 | . 4 2 . 1 4 Combat Bots Only 3 | . 3 2 . 1 3 Max Kills in Single Turn 2 | . 1 1 . 1 2 Gunslinging . | . . . . . . Exploded . | . . . . . . Melee . | . . . . . . Uniques/NPCs Destroyed 1 | . . 1 . . . YI-UF0 (-10/Mines) Combat | -11 -10 -10 -10 -9 -8 -------- Run | Scr Mat Min Exi Min Mat Damage Taken 1455 | . 411 403 . 9 632 Core 253 | . 57 46 . . 150 Absorbed by Shields . | . . . . . . Redirected to Shielding 50 | . . . . . 50 Regen/Repaired (Parts) 109 | . 109 . . . . Core Remaining (%) 79 | 100 . . . 58 . Volleys Fired 104 | . 39 8 . 6 51 Largest 2 | . 2 2 . 2 2 Hottest 118 | . 118 70 . 70 70 Shots Fired 206 | . 76 16 . 12 102 Gun 33 | . 33 . . . . Cannon 173 | . 43 16 . 12 102 Launcher . | . . . . . . Special . | . . . . . . Kinetic 141 | . 11 16 . 12 102 Thermal 65 | . 65 . . . . Explosive . | . . . . . . Electromagnetic . | . . . . . . Robot Hit Streak 10 | . 9 4 . 5 10 Robot Miss Streak 4 | . 3 4 . 1 2 Penetration Max . | . . . . . . Secondary Targets . | . . . . . . Shots Hit Robots 134 | . 45 7 6 9 67 Core Hits 55 | . 16 3 4 5 27 Critical Kills . | . . . . . . Critical Parts Destroyed . | . . . . . . Critical Strikes 8 | . 2 1 . 1 4 Burn 2 | . 2 . . . . Blast 6 | . . 1 . 1 4 Melee Attacks 6 | . . . 6 . . Impact . | . . . . . . Slashing 6 | . . . 6 . . Piercing . | . . . . . . Sneak Attacks . | . . . . . . Combat Hostiles . | . . . . . . Follow-up Attacks . | . . . . . . Damage Inflicted 2910 | . 801 128 456 347 1178 Guns 272 | . 272 . . . . Cannons 2001 | . 529 128 . 166 1178 Explosions 181 | . . . . 181 . Melee 456 | . . . 456 . . Ramming . | . . . . . . Kinetic 1612 | . 140 128 . 166 1178 Thermal 842 | . 661 . . 181 . Explosive . | . . . . . . Electromagnetic . | . . . . . . Impact . | . . . . . . Slashing 456 | . . . 456 . . Piercing . | . . . . . . Highest Corruption . | . . . . . . Average Corruption . | . . . . . . Corruption Purged . | . . . . . . Corruption Blocked . | . . . . . . Overload Shots . | . . . . . . Overflow Damage 17 | . 15 . 2 . . Projectiles 15 | . 15 . . . . Explosions . | . . . . . . Melee 2 | . . . 2 . . Knockbacks 15 | . . 1 . 1 13 Impact . | . . . . . . Kinetic 15 | . . 1 . 1 13 Secondary . | . . . . . . Self-Inflicted Damage . | . . . . . . Shots . | . . . . . . Rammed . | . . . . . . Targets Rammed . | . . . . . . Kicked . | . . . . . . Crushed . | . . . . . . Highest Temperature 342 | . 342 33 . 27 111 Average Temperature 80 | . 112 16 . 10 30 Received Heat Transfer 462 | . 177 15 . . 270 Effects 2 | . 2 . . . . Energy Bleed 2 | . 2 . . . . Siege Activations . | . . . . . . Robots Corrupted . | . . . . . . Combat Hostiles . | . . . . . . Parts Fried . | . . . . . . Impact Corruptions . | . . . . . . Robots Melted . | . . . . . . Combat Hostiles . | . . . . . . Parts Melted 5 | . 5 . . . . Heat Transferred 1965 | . 1665 . . 300 . Parts Sabotaged . | . . . . . . Parts Stolen . | . . . . . . Parts Stripped . | . . . . . . Power Chain Reactions . | . . . . . . Missiles Intercepted . | . . . . . . Alert | -11 -10 -10 -10 -9 -8 ------- Run | Scr Mat Min Exi Min Mat Peak Influence 313 | . 209 74 . 313 218 Initial 13 | . . 13 . . . Average 63 | . 50 15 . 142 85 Maximum Alert Level 1 | . 1 . . 1 1 Low Security (%) 89 | 100 92 100 . 70 87 Level 1 10 | . 7 . . 29 12 Level 2 . | . . . . . . Level 3 . | . . . . . . Level 4 . | . . . . . . Level 5 . | . . . . . . High Security . | . . . . . . Max Security . | . . . . . . Squads Dispatched 4 | . 2 . . . 2 Investigation 2 | . 1 . . . 1 Extermination . | . . . . . . Reinforcement 1 | . 1 . . . . Assault . | . . . . . . Garrison 1 | . . . . . 1 Intercept . | . . . . . . Searches Triggered . | . . . . . . Construction Impeded . | . . . . . . Haulers Reinforced . | . . . . . . Active Scanning Responses . | . . . . . . Cargo Convoy Interrupts . | . . . . . . Stealth | -11 -10 -10 -10 -9 -8 --------- Run | Scr Mat Min Exi Min Mat Distress Signals . | . . . . . . Communications Jammed . | . . . . . . Distress Signals . | . . . . . . Times Spotted 46 | . 17 3 . 8 18 Peak Tracking Total 3 | . 3 2 . 3 3 Tactical Retreats 4 | . 2 . . . 2 Traps | -11 -10 -10 -10 -9 -8 ------- Run | Scr Mat Min Exi Min Mat Traps Triggered 1 | . 1 . . . . Indirectly . | . . . . . . Trap Hack Attempts . | . . . . . . Triggered . | . . . . . . Disarmed . | . . . . . . Reprogrammed . | . . . . . . Reused . | . . . . . . Traps Extracted . | . . . . . . Installed . | . . . . . . Triggered . | . . . . . . Machines | -11 -10 -10 -10 -9 -8 ---------- Run | Scr Mat Min Exi Min Mat Machines Disabled 4 | . 1 . . 3 . Max in Single Turn 3 | . 1 . . 3 . Machines Sabotaged . | . . . . . . Garrisons Compromised . | . . . . . . Overloaded Fab Kills . | . . . . . . Hacking | -11 -10 -10 -10 -9 -8 --------- Run | Scr Mat Min Exi Min Mat Machines Accessed 21 | . 9 2 3 . 7 Terminals 11 | . 6 1 . . 4 Fabricators . | . . . . . . Repair Stations 1 | . 1 . . . . Recycling Units 2 | . 2 . . . . Scanalyzers 2 | . . . . . 2 Garrison Access 1 | . . . . . 1 Total Hacks 86 | . 35 4 20 . 27 Successful 59 | . 16 4 20 . 19 Failed 26 | . 18 . . . 8 Catastrophic 1 | . 1 . . . . Database Lockouts 1 | . 1 . . . . Manual 39 | . 23 2 4 . 10 Terminals 38 | . 24 3 . . 11 Fabricators . | . . . . . . Repair Stations 5 | . 5 . . . . Recycling Units 6 | . 6 . . . . Scanalyzers 13 | . . . . . 13 Garrison Access 3 | . . . . . 3 Terminal Hacks 30 | . 5 3 20 . 2 Record 20 | . . . 20 . . Robot Analysis 2 | . 1 1 . . . Prototype ID Bank 3 | . 3 . . . . Open Door 1 | . . 1 . . . Branch Access Points 1 | . . . . . 1 Unreport Threat 1 | . . . . . 1 Recall Investigation 1 | . 1 . . . . Zone Layout 1 | . . 1 . . . Fabricator Hacks . | . . . . . . Repair Station Hacks 4 | . 4 . . . . Scan Component 2 | . 2 . . . . Repair 2 | . 2 . . . . Recycling Unit Hacks 1 | . 1 . . . . Retrieve Components 1 | . 1 . . . . Scanalyzer 13 | . . . . . 13 Insert Component 6 | . . . . . 6 Analyze 7 | . . . . . 7 Garrison Access Hacks . | . . . . . . Unauthorized Hacks 11 | . 6 1 . . 4 Terminals 9 | . 4 1 . . 4 Track 1 | . . 1 . . . Botnet 6 | . 3 . . . 3 Operators 2 | . 1 . . . 1 Fabricators . | . . . . . . Repair Stations . | . . . . . . Recycling Units 2 | . 2 . . . . Reject 2 | . 2 . . . . Scanalyzers . | . . . . . . Garrison Access . | . . . . . . Data Cores Recovered . | . . . . . . Used . | . . . . . . Hacking Detections 15 | . 8 1 . . 6 Full Trace Events 2 | . 1 . . . 1 Feedback Events . | . . . . . . Feedback Blocked . | . . . . . . Robot Schematics Acquired . | . . . . . . Robots Built . | . . . . . . Authchips . | . . . . . . Time . | . . . . . . Total Robot Build Rating . | . . . . . . Part Schematics Acquired 6 | . . . . . 6 Parts Built . | . . . . . . Authchips . | . . . . . . Time . | . . . . . . Total Part Build Rating . | . . . . . . Parts Repaired 2 | . 2 . . . . Time 77 | . 77 . . . . Parts Recycled . | . . . . . . Recycled Matter . | . . . . . . Retrieved Matter . | . . . . . . Retrieved Components 10 | . 10 . . . . Parts Scanalyzed 6 | . . . . . 6 Part Schematics Acquired 6 | . . . . . 6 Parts Damaged 2 | . . . . . 2 Bothacking | -11 -10 -10 -10 -9 -8 ------------ Run | Scr Mat Min Exi Min Mat Used RIF Installer . | . . . . . . Robots Hacked . | . . . . . . Non-combat . | . . . . . . Combat . | . . . . . . Robot Hacks Applied . | . . . . . . Relay Couplers Released . | . . . . . . Fabnet Peak Effective % . | . . . . . . Robots Rewired 2 | . . . 2 . . Allies Hacked . | . . . . . . Hacks Repelled . | . . . . . . Allies | -11 -10 -10 -10 -9 -8 -------- Run | Scr Mat Min Exi Min Mat Total Allies 5 | . . 3 2 . . Largest Group 5 | . . 3 5 4 3 Highest-Rated Group 56 | . . 40 56 48 40 Highest-Rated Ally 16 | . . 16 16 16 16 Total Orders 6 | . . . 3 . 3 STAY 4 | . . . 2 . 2 FOLLOW 2 | . . . 1 . 1 Ally Attacks 45 | . . . . 31 14 Total Damage 433 | . . . . 284 149 Kills 8 | . . . . 6 2 Allies Corrupted . | . . . . . . Allies Melted . | . . . . . . Intel | -11 -10 -10 -10 -9 -8 ------- Run | Scr Mat Min Exi Min Mat Robot Analysis Total 2 | . 1 1 . . . Derelict Logs Recovered 2 | . . . . 2 . Drone Launches . | . . . . . . Drone Recoveries . | . . . . . . Exploration | -11 -10 -10 -10 -9 -8 ------------- Run | Scr Mat Min Exi Min Mat Turns Passed 6787 | 86 1517 1565 1742 1020 857 Spaces Moved 3271 | 56 1030 686 702 411 386 Core 3 | 1 2 . . . . Treads 2402 | . 217 686 702 411 386 Legs 360 | 55 305 . . . . Wheels 506 | . 506 . . . . Hover . | . . . . . . Flight . | . . . . . . Fastest Speed 50 | 50 90 160 240 240 160 Average Speed 186 | 127 120 212 240 240 169 Slowest Speed 240 | 190 240 240 240 240 240 Overloaded Moves . | . . . . . . Propulsion Burnouts . | . . . . . . Robots Hopped . | . . . . . . Cave-ins Triggered . | . . . . . . Exploration Rate (%) 63 | 4 99 94 91 60 30 Regions Visited 5 Branch Regions 3 Pre-discovered Areas 2 | . . 1 1 . . Known Exits Taken . | . . . . . . Unknown Exits Taken 5 | 1 1 1 1 1 . Scrap Searched 3 | . . 1 . 2 . Spaces Dug . | . . . . . . Terrain Destroyed 26 | . . 2 . 24 . Melee . | . . . . . . Projectile 2 | . . 2 . . . AOE 24 | . . . . 24 . Terrain Rammed . | . . . . . . Walls Destroyed . | . . . . . . Machines Disabled . | . . . . . . Actions | -11 -10 -10 -10 -9 -8 --------- Run | Scr Mat Min Exi Min Mat Total 3759 | 68 1235 780 755 433 488 Wait 229 | . 107 81 . 13 28 Move 3266 | 55 1029 685 701 410 386 Hop . | . . . . . . Pick Up 41 | 7 21 3 4 . 6 Fast Attach 13 | 4 5 1 1 . 2 Attach 9 | 2 2 . . . 5 Detach 2 | . 1 . . . 1 Swap 27 | . 15 1 4 3 4 Drop 28 | . 16 1 5 1 5 Fire 104 | . 39 8 . 6 51 Melee 6 | . . . 6 . . Ram . | . . . . . . Kick . | . . . . . . Crush . | . . . . . . Escape Stasis . | . . . . . . Rewire 34 | . . . 34 . . Trap . | . . . . . . Miscellaneous . | . . . . . . Route ------- -11/Scrapyard -10/Materials (discovered 5 exits: [*Mat x3] / *Min x2) -10/Mines (discovered 3 exits: [*Mat x2] / *Exi) -10/Exiles -9/Mines -8/Materials History --------- Turn | Location | Event 23 | -11/Scrapyard | Discovered new exit (range 15) 87 | -11/Scrapyard | Entered Materials 257 | -10/Materials | Discovered new exit (range 12) 266 | -10/Materials | Discovered new exit (range 14) 310 | -10/Materials | Build established: Mutant 340 | -10/Materials | Discovered new exit (range 13) 510 | -10/Materials | Discovered new exit (range 7) 949 | -10/Materials | Discovered new exit (range 7) 1260 | -10/Materials | Repaired Adv. Beam Cannon 1287 | -10/Materials | Repaired Med. Laser 1331 | -10/Materials | Central database locked down 1604 | -10/Materials | Entered Mines 1615 | -10/Mines | Met a Derelict bent on vengeance 1877 | -10/Mines | Deemed a non-threat by the Exiles lab entrance 1877 | -10/Mines | Discovered new exit (range 5) 1978 | -10/Mines | Found the Drone Emporium 1990 | -10/Mines | Found Prototype Device 2081 | -10/Mines | Discovered new exit (range 6) 2082 | -10/Mines | Learned location of Storage (-9) 2465 | -10/Mines | Destroyed YI-UF0 2555 | -10/Mines | Assisted by bots powering up and referring to "LRC-V3" 2752 | -10/Mines | Discovered new exit (range 8) 3169 | -10/Mines | Entered Exiles 3169 | -10/Exiles | Found Exiles lab destroyed 3169 | -10/Exiles | Accompanied by 3 allies 3604 | -10/Exiles | Build established: Commander-Mutant 3792 | -10/Exiles | Learned location of Zion (-6) 4881 | -10/Exiles | Discovered new exit (range 14) 4911 | -10/Exiles | Entered Mines 4911 | -9/Mines | Accompanied by 5 allies 5201 | -9/Mines | Discovered new exit (range 10) 5203 | -9/Mines | Build established: Mutant 5204 | -9/Mines | Learned Materials non-interactive machine intel 5349 | -9/Mines | Learned Materials interactive machine intel 5931 | -9/Mines | Entered Materials 5931 | -8/Materials | Accompanied by 3 allies 5931 | -8/Materials | Evolved 4 slots: Propulsion x1, Utility x3 5932 | -8/Materials | Loaded intel: 43 non-interactive machine locations 5933 | -8/Materials | Loaded intel: 19 interactive machine locations 5933 | -8/Materials | Identified Bomb Drone Bay 6788 | -8/Materials | Self-destructed Last Messages --------------- 06658_ K-01 Serf collects debris. 06659_ Acquired 1 matter. 06663_ K-01 Serf collects debris. 06664_ Acquired 2 matter. 06667_ K-01 Serf collects debris. 06707_ Acquired Hrd. Medium Armor Plating. 06750_ Connecting with Terminal... >>Alert(Purge) Purged threat record, alert level lowered. >>Trojan(Botnet) Trojan loaded successfully. Testing... Terminal linked with 2 systems. Awaiting botnet instructions. 06750_ T-07 Excavator is excavating. 06776_ Connecting with Garrison Access... 06776_ ALERT: Suspicious activity at Garrison Access M001. Dispatching Investigation squad. 06780_ Y-45 Defender emerges from the garrison. 06782_ Critical hit (Burn: +37). Map ----- +----------------------------------------------------+ | | | | | | | | | | | | | | | | | | | | | | | | | | | | | | | | | | | | | | | ?????????????????????????????????????????????????? | | ??????????????????????###########????#####???????? | | ??????????????????????# #???? #???????? | | ??????????????????????# """ #??? #???????? | | ??????????????????????+ % * """ #? """ [#???????? | | ???"""????????????????# Y %""" # """"" #???????? | | ???"""????????????????# "@" # """"" #???????? | | ???"""????????????????# "G" / # """"" #???????? | | ??????????????????????# """ # """ #???????? | | ??????????????????????# # #???????? | | ??????????????????????#####+##### #?####### | | ????????????????????????# #######+###### | | ????????????????### ##### # """ | | ??????????????? T # """ | | ??????????????????####### + """ | | ????????????????????????# ###### ### # | | ????????????????????????#######????# #?# # ! | | ???????????????????????????????????# #?# ####### | | ????????????????"""??????????#######+### # = | | ????????????????"""??????????# # # ! | | ????????????????"""??????????# # # | | ????????????????"""??????????# # # | | ?????????????????????????????# ! %# # """ " | | ?????????????????????????????# % # # """ " | | ?????????????????????????????# %+ + """ " | | ?????????????????????????????# % # # | | ?????????????????????????????# # ####+## | | ?"""?????????????????????????########### ### ! # | | ?"""???????????????????????????????????# = # | | ?"""????????????????????????"""????????# ### # | | ????????????????????????????"""????????# ####### | +----------------------------------------------------+ Best States ------------- Heat Dissipation 31 Energy Generation 14 Energy Capacity 275 Matter Stores 300 Matter Capacity 300 Sight Range 16 Terrain Scan Density 10 Jamming Range 12 Additional Mass Support 6 Armor Coverage 225 Resistance: KI 30 Propulsion Shielding 33 Evasion (%) 55 Targeting Accuracy 5 Recoil Reduction 3 Offensive Hacking 11 Item Schematics ----------------- Hvy. Ion Engine | -8/Materials | Scanalyzed Adv. Beam Cannon | -8/Materials | Scanalyzed Gauss Rifle | -8/Materials | Scanalyzed Mak. Sword | -8/Materials | Scanalyzed Med. Reactive Plating | -8/Materials | Scanalyzed Hvy. Rocket Launcher | -8/Materials | Scanalyzed Robot Schematics ------------------ None Fabricated ------------ Nothing Alien Tech Used ----------------- None Achievements -------------- None Challenges ------------ None Game ------ Seed SeismicBoreDiverter Manual? 0 Play Time 00:41:45 Cumulative 165.0 hours Start 2022.03.20 @ 13:50:41 End 2022.03.20 @ 14:42:23 Sessions 1 Manual Loads 0 Difficulty Rogue Special Mode None Game No. 160 Rogue 160 Adventurer 0 Explorer 0 Win Type - Total 0 Types 0/0/0/0/0/0/0/0/0 Lore% 39 Gallery% 46 Achievement% 35 Wizard Run 0 Options --------- ASCII 0 Keyboard 0 Movement Mouse Keybinds 0 Fullscreen 1 Font 16/SmallcapsGlow Map View 75x55 Tactical HUD 1 Map Filters NONE Filters NONE Steam 1 RUN: e2c0d38f-66eb-4960-ab92-22c0e131d99c